fUST/lending_fUST_20241112
["ID","MTS","AMOUNT","RATE_DAILY","PERIOD"]
[342052824,1731395458342,-500.0,0.00023835,2]
[342052825,1731395458362,-500.0,0.00023835,2]
[342052826,1731395458371,-529.4,0.00023835,2]
[342052827,1731395458382,-687.54,0.00023835,2]
[342052828,1731395458393,-500.0,0.00023835,2]
[342052829,1731395458402,-687.26,0.00023835,2]
[342052830,1731395458411,-500.0,0.00023835,2]
[342052831,1731395458420,-500.0,0.00023835,2]
[342052832,1731395458429,-2310.28,0.00023835,2]
[342052833,1731395458440,-500.0,0.00023835,2]
[342052834,1731395458450,-500.0,0.00023835,2]
[342052835,1731395458460,-500.0,0.00023835,2]
[342052836,1731395458470,-500.0,0.00023835,2]
[342052837,1731395458479,-563.41616564,0.00023835,2]
[342052838,1731395458488,-540.56250508,0.00023835,2]
[342052839,1731395458498,-2204.59,0.00023835,2]
[342052840,1731395458508,-500.0,0.00023835,2]
[342052841,1731395458517,-657.25,0.00023835,2]
[342052842,1731395458527,-6271.46,0.00023835,2]
[342052843,1731395458537,-573.94,0.00023835,2]
[342052844,1731395458546,-883.62,0.00023835,2]
[342052845,1731395458555,-925.17,0.00023835,2]
[342052846,1731395458564,-500.0,0.00023835,2]
[342052847,1731395458574,-500.0,0.00023835,2]
[342052848,1731395458583,-163.4947248,0.00023835,2]
[342052849,1731395458592,-1011.75,0.00023835,2]
[342052850,1731395458601,-19034.84,0.00023835,2]
[342052851,1731395458610,-1831.69,0.00023835,2]
[342052852,1731395458619,-500.0,0.00023835,2]
[342052853,1731395458639,-500.0,0.00023835,2]
[342052854,1731395458653,-564.26,0.00023835,2]
[342052855,1731395458663,-500.0,0.00023835,2]
[342052856,1731395458672,-1321.42,0.00023835,2]
[342052857,1731395458681,-516.24,0.00023835,2]
[342052858,1731395458691,-1588.61,0.00023835,2]
[342052859,1731395458700,-500.0,0.00023835,2]
[342052860,1731395458709,-500.0,0.00023835,2]
[342052861,1731395458718,-6707.74,0.00023835,2]
[342052862,1731395458727,-500.0,0.00023835,2]
[342052863,1731395458736,-500.0,0.00023835,2]
[342052864,1731395458745,-4781.29,0.00023835,2]
[342052865,1731395458755,-1089.53,0.00023835,2]
[342052866,1731395458764,-737.22,0.00023835,2]
[342052867,1731395458773,-8365.05,0.00023835,2]
[342052868,1731395458782,-1231.58,0.00023835,2]
[342052869,1731395458791,-578.71,0.00023835,2]
[342052870,1731395458800,-500.0,0.00023835,2]
[342052871,1731395458810,-500.0,0.00023835,2]
[342052872,1731395458819,-690.09,0.00023835,2]
[342052873,1731395458828,-3140.86,0.00023835,2]
[342052874,1731395458838,-331.42929758,0.00023835,2]
[342052875,1731395458847,-500.0,0.00023835,2]
[342052876,1731395458856,-500.0,0.00023835,2]
[342052877,1731395458865,-1329.26,0.00023835,2]
[342052878,1731395458874,-1361.49,0.00023835,2]
[342052879,1731395458883,-500.0,0.00023835,2]
[342052880,1731395458892,-500.0,0.00023835,2]
[342052881,1731395458902,-754.43,0.00023835,2]
[342052882,1731395458911,-1514.78,0.00023835,2]
[342052883,1731395458920,-500.0,0.00023835,2]
[342052884,1731395458930,-500.0,0.00023835,2]
[342052885,1731395458941,-430.01405653,0.00023835,2]
[342052886,1731395458951,-633.9,0.00023835,2]
[342052887,1731395458961,-500.0,0.00023835,2]
[342052888,1731395458971,-815.11,0.00023835,2]
[342052889,1731395458981,-611.92,0.00023835,2]
[342052890,1731395458991,-12440.19,0.00023835,2]
[342052891,1731395459000,-515.26,0.00023835,2]
[342052892,1731395459009,-782.05,0.00023835,2]
[342052893,1731395459018,-958.04,0.00023835,2]
[342052894,1731395459027,-276.33388247,0.00023835,2]
[342052895,1731395459037,-427.60816103,0.00023835,2]
[342052896,1731395459046,-500.0,0.00023835,2]
[342052897,1731395459055,-517.22,0.00023835,2]
[342052898,1731395459065,-500.0,0.00023835,2]
[342052899,1731395459075,-1035.61,0.00023835,2]
[342052900,1731395459084,-974.3,0.00023835,2]
[342052901,1731395459094,-3387.7,0.00023835,2]
[342052902,1731395459103,-500.0,0.00023835,2]
[342052903,1731395459112,-500.0,0.00023835,2]
[342052904,1731395459122,-500.0,0.00023835,2]
[342052905,1731395459131,-1217.45,0.00023835,2]
[342052906,1731395459141,-178.552447,0.00023836,2]
[342052907,1731395459151,-300.0,0.000239,11]
[342052908,1731395459160,-166.666666,0.00023969,2]
[342052909,1731395459170,-1200.0,0.0002397,2]
[342052910,1731395459179,-415.0,0.00024,3]
[342052911,1731395459192,-869.79573578,0.00024,2]
[342052912,1731395459202,-400.0,0.00024,7]
[342052913,1731395459211,-600.0,0.00024,2]
[342052914,1731395459220,-857.24667617,0.00024073,2]
[342052915,1731395459230,-500.0,0.00024109,2]
[342052916,1731395459239,-544.45,0.00024109,2]
[342052917,1731395459249,-515.04,0.00024109,2]
[342052918,1731395459259,-554.84,0.00024109,2]
[342052919,1731395459268,-500.0,0.00024109,2]
[342052920,1731395459276,-500.0,0.00024109,2]
[342052921,1731395459286,-500.0,0.00024109,2]
[342052922,1731395459296,-500.0,0.00024109,2]
[342052923,1731395459306,-500.0,0.00024109,2]
[342052924,1731395459315,-1157.98,0.00024109,2]
[342052925,1731395459325,-861.1,0.00024109,2]
[342052926,1731395459334,-528.28,0.00024109,2]
[342052927,1731395459343,-500.0,0.00024109,2]
[342052928,1731395459353,-500.0,0.00024109,2]
[342052929,1731395459362,-500.0,0.00024109,2]
[342052930,1731395459371,-500.0,0.00024109,2]
[342052931,1731395459380,-500.0,0.00024109,2]
[342052932,1731395459389,-500.0,0.00024109,2]
[342052933,1731395459398,-500.0,0.00024109,2]
[342052934,1731395459407,-500.0,0.00024109,2]
[342052935,1731395459417,-500.0,0.00024109,2]
[342052936,1731395459426,-500.0,0.00024109,2]
[342052937,1731395459437,-529.4,0.00024109,2]
[342052938,1731395459446,-687.54,0.00024109,2]
[342052939,1731395459457,-500.0,0.00024109,2]
[342052940,1731395459468,-687.26,0.00024109,2]
[342052941,1731395459478,-178.13225475,0.00024109,2]
[342052942,1731395459487,-500.0,0.00024109,2]
[342052943,1731395459496,-2310.28,0.00024109,2]
[342052944,1731395459506,-500.0,0.00024109,2]
[342052945,1731395459515,-500.0,0.00024109,2]
[342052946,1731395459524,-500.0,0.00024109,2]
[342052947,1731395459534,-500.0,0.00024109,2]
[342052948,1731395459544,-2204.59,0.00024109,2]
[342052949,1731395459553,-500.0,0.00024109,2]
[342052950,1731395459562,-657.25,0.00024109,2]
[342052951,1731395459571,-6271.46,0.00024109,2]
[342052952,1731395459580,-573.94,0.00024109,2]
[342052953,1731395459589,-883.62,0.00024109,2]
[342052954,1731395459598,-925.17,0.00024109,2]
[342052955,1731395459606,-500.0,0.00024109,2]
[342052956,1731395459615,-500.0,0.00024109,2]
[342052957,1731395459625,-1011.75,0.00024109,2]
[342052958,1731395459634,-19034.84,0.00024109,2]
[342052959,1731395459643,-1831.69,0.00024109,2]
[342052960,1731395459653,-500.0,0.00024109,2]
[342052961,1731395459662,-500.0,0.00024109,2]
[342052962,1731395459672,-564.26,0.00024109,2]
[342052963,1731395459681,-500.0,0.00024109,2]
[342052964,1731395459693,-1321.42,0.00024109,2]
[342052965,1731395459702,-516.24,0.00024109,2]
[342052966,1731395459711,-1588.61,0.00024109,2]
[342052967,1731395459720,-500.0,0.00024109,2]
[342052968,1731395459729,-500.0,0.00024109,2]
[342052969,1731395459738,-6707.74,0.00024109,2]
[342052970,1731395459747,-500.0,0.00024109,2]
[342052971,1731395459757,-257.99929823,0.00024109,2]
[342052972,1731395459766,-4781.29,0.00024109,2]
[342052973,1731395459775,-1089.53,0.00024109,2]
[342052974,1731395459784,-737.22,0.00024109,2]
[342052975,1731395459794,-8365.05,0.00024109,2]
[342052976,1731395459803,-1231.58,0.00024109,2]
[342052977,1731395459812,-578.71,0.00024109,2]
[342052978,1731395459821,-519.11991473,0.00024109,2]
[342052979,1731395459831,-500.0,0.00024109,2]
[342052980,1731395459840,-690.09,0.00024109,2]
[342052981,1731395459849,-3140.86,0.00024109,2]
[342052982,1731395459858,-500.0,0.00024109,2]
[342052983,1731395459867,-500.0,0.00024109,2]
[342052984,1731395459876,-1329.26,0.00024109,2]
[342052985,1731395459886,-1361.49,0.00024109,2]
[342052986,1731395459895,-500.0,0.00024109,2]
[342052987,1731395459905,-500.0,0.00024109,2]
[342052988,1731395459914,-754.43,0.00024109,2]
[342052989,1731395459923,-1514.78,0.00024109,2]
[342052990,1731395459932,-500.0,0.00024109,2]
[342052991,1731395459943,-186.38102747,0.00024109,2]
[342052992,1731395459952,-633.9,0.00024109,2]
[342052993,1731395459961,-815.11,0.00024109,2]
[342052994,1731395459971,-611.92,0.00024109,2]
[342052995,1731395459980,-12440.19,0.00024109,2]
[342052996,1731395459990,-515.26,0.00024109,2]
[342052997,1731395459999,-782.05,0.00024109,2]
[342052998,1731395460009,-958.04,0.00024109,2]
[342052999,1731395460019,-500.0,0.00024109,2]
[342053000,1731395460028,-517.22,0.00024109,2]
[342053001,1731395460038,-500.0,0.00024109,2]
[342053002,1731395460047,-1035.61,0.00024109,2]
[342053003,1731395460057,-974.3,0.00024109,2]
[342053004,1731395460066,-3387.7,0.00024109,2]
[342053005,1731395460076,-500.0,0.00024109,2]
[342053006,1731395460085,-500.0,0.00024109,2]
[342053007,1731395460095,-500.0,0.00024109,2]
[342053008,1731395460105,-1217.45,0.00024109,2]
[342053009,1731395460114,-417.0,0.00024164,2]
[342053010,1731395460124,-171.0,0.00024164,2]
[342053011,1731395460133,-600.0,0.0002425,2]
[342053012,1731395460142,-1013.96261346,0.00024322,2]
[342053013,1731395460151,-1500.0,0.00024322,2]
[342053014,1731395460161,-1500.0,0.00024322,2]
[342053015,1731395460170,-1500.0,0.00024322,2]
[342053016,1731395460180,-1500.0,0.00024322,2]
[342053017,1731395460191,-619.30680955,0.00024322,2]
[342053018,1731395460201,-1500.0,0.00024322,2]
[342053019,1731395460211,-506.14739304,0.00024322,2]
[342053020,1731395460220,-1500.0,0.00024322,2]
[342053021,1731395460230,-1500.0,0.00024322,2]
[342053022,1731395460239,-943.08658946,0.00024322,2]
[342053023,1731395460249,-451.67399299,0.00024383,2]
[342053024,1731395460257,-544.45,0.00024383,2]
[342053025,1731395460266,-515.04,0.00024383,2]
[342053026,1731395460276,-554.84,0.00024383,2]
[342053027,1731395460285,-500.0,0.00024383,2]
[342053028,1731395460294,-500.0,0.00024383,2]
[342053029,1731395460304,-500.0,0.00024383,2]
[342053030,1731395460313,-500.0,0.00024383,2]
[342053031,1731395460322,-500.0,0.00024383,2]
[342053032,1731395460332,-1157.98,0.00024383,2]
[342053033,1731395460341,-861.1,0.00024383,2]
[342053034,1731395460350,-528.28,0.00024383,2]
[342053035,1731395460360,-500.0,0.00024383,2]
[342053036,1731395460369,-500.0,0.00024383,2]
[342053037,1731395460378,-500.0,0.00024383,2]
[342053038,1731395460387,-500.0,0.00024383,2]
[342053039,1731395460396,-500.0,0.00024383,2]
[342053040,1731395460406,-500.0,0.00024383,2]
[342053041,1731395460415,-500.0,0.00024383,2]
[342053042,1731395460425,-500.0,0.00024383,2]
[342053043,1731395460529,-500.0,0.00024383,2]
[342053044,1731395460540,-500.0,0.00024383,2]
[342053045,1731395460550,-529.4,0.00024383,2]
[342053046,1731395460559,-687.54,0.00024383,2]
[342053047,1731395460568,-500.0,0.00024383,2]
[342053048,1731395460578,-687.26,0.00024383,2]
[342053049,1731395460587,-500.0,0.00024383,2]
[342053050,1731395460596,-2310.28,0.00024383,2]
[342053051,1731395460606,-500.0,0.00024383,2]
[342053052,1731395460616,-500.0,0.00024383,2]
[342053053,1731395460624,-500.0,0.00024383,2]
[342053054,1731395460634,-500.0,0.00024383,2]
[342053055,1731395460643,-2204.59,0.00024383,2]
[342053056,1731395460652,-500.0,0.00024383,2]
[342053057,1731395460661,-657.25,0.00024383,2]
[342053058,1731395460670,-6271.46,0.00024383,2]
[342053059,1731395460680,-573.94,0.00024383,2]
[342053060,1731395460691,-883.62,0.00024383,2]
[342053061,1731395460700,-925.17,0.00024383,2]
[342053062,1731395460710,-500.0,0.00024383,2]
[342053063,1731395460719,-500.0,0.00024383,2]
[342053064,1731395460729,-1011.75,0.00024383,2]
[342053065,1731395460737,-19034.84,0.00024383,2]
[342053066,1731395460747,-1831.69,0.00024383,2]
[342053067,1731395460757,-500.0,0.00024383,2]
[342053068,1731395460766,-151.46442987,0.00024383,2]
[342053069,1731395460776,-564.26,0.00024383,2]
[342053070,1731395460785,-500.0,0.00024383,2]
[342053071,1731395460794,-1321.42,0.00024383,2]
[342053072,1731395460803,-516.24,0.00024383,2]
[342053073,1731395460812,-615.35937944,0.00024383,2]
[342053074,1731395460821,-1588.61,0.00024383,2]
[342053075,1731395460830,-500.0,0.00024383,2]
[342053076,1731395460839,-6707.74,0.00024383,2]
[342053077,1731395460848,-500.0,0.00024383,2]
[342053078,1731395460857,-4781.29,0.00024383,2]
[342053079,1731395460867,-1089.53,0.00024383,2]
[342053080,1731395460877,-737.22,0.00024383,2]
[342053081,1731395460886,-8365.05,0.00024383,2]
[342053082,1731395460896,-1231.58,0.00024383,2]
[342053083,1731395460904,-578.71,0.00024383,2]
[342053084,1731395460913,-500.0,0.00024383,2]
[342053085,1731395460923,-690.09,0.00024383,2]
[342053086,1731395460932,-3140.86,0.00024383,2]
[342053087,1731395460943,-500.0,0.00024383,2]
[342053088,1731395460953,-500.0,0.00024383,2]
[342053089,1731395460962,-1329.26,0.00024383,2]
[342053090,1731395460971,-1361.49,0.00024383,2]
[342053091,1731395460980,-500.0,0.00024383,2]
[342053092,1731395460990,-500.0,0.00024383,2]
[342053093,1731395460999,-754.43,0.00024383,2]
[342053094,1731395461009,-1514.78,0.00024383,2]
[342053095,1731395461018,-500.0,0.00024383,2]
[342053096,1731395461028,-633.9,0.00024383,2]
[342053097,1731395461037,-815.11,0.00024383,2]
[342053098,1731395461048,-611.92,0.00024383,2]
[342053099,1731395461057,-12440.19,0.00024383,2]
[342053100,1731395461067,-515.26,0.00024383,2]
[342053101,1731395461076,-782.05,0.00024383,2]
[342053102,1731395461086,-958.04,0.00024383,2]
[342053103,1731395461095,-500.0,0.00024383,2]
[342053104,1731395461105,-517.22,0.00024383,2]
[342053105,1731395461115,-500.0,0.00024383,2]
[342053106,1731395461124,-1035.61,0.00024383,2]
[342053107,1731395461134,-974.3,0.00024383,2]
[342053108,1731395461143,-3387.7,0.00024383,2]
[342053109,1731395461153,-500.0,0.00024383,2]
[342053110,1731395461162,-500.0,0.00024383,2]
[342053111,1731395461172,-160.73449205,0.00024383,2]
[342053112,1731395461181,-1217.45,0.00024383,2]
[342053113,1731395461193,-190.2,0.00024413,3]
[342053114,1731395461202,-166.666666,0.00024482,2]
[342053115,1731395461213,-600.0,0.000245,2]
[342053116,1731395461223,-3200.0,0.0002454,2]
[342053117,1731395461233,-500.0,0.0002454,2]
[342053118,1731395461243,-151.0,0.0002454,2]
[342053119,1731395461252,-544.45,0.00024657,2]
[342053120,1731395461262,-515.04,0.00024657,2]
[342053121,1731395461272,-554.84,0.00024657,2]
[342053122,1731395461282,-500.0,0.00024657,2]
[342053123,1731395461291,-500.0,0.00024657,2]
[342053124,1731395461301,-500.0,0.00024657,2]
[342053125,1731395461310,-500.0,0.00024657,2]
[342053126,1731395461320,-500.0,0.00024657,2]
[342053127,1731395461329,-1157.98,0.00024657,2]
[342053128,1731395461339,-861.1,0.00024657,2]
[342053129,1731395461348,-528.28,0.00024657,2]
[342053130,1731395461357,-500.0,0.00024657,2]
[342053131,1731395461366,-500.0,0.00024657,2]
[342053132,1731395461376,-360.61315147,0.00024657,2]
[342053133,1731395461385,-500.0,0.00024657,2]
[342053134,1731395461394,-526.07980772,0.00024657,2]
[342053135,1731395461403,-500.0,0.00024657,2]
[342053136,1731395461412,-500.0,0.00024657,2]
[342053137,1731395461421,-500.0,0.00024657,2]
[342053138,1731395461431,-275.90872796,0.00024657,2]
[342053139,1731395461442,-500.0,0.00024657,2]
[342053140,1731395461452,-529.4,0.00024657,2]
[342053141,1731395461464,-687.54,0.00024657,2]
[342053142,1731395461473,-500.0,0.00024657,2]
[342053143,1731395461483,-687.26,0.00024657,2]
[342053144,1731395461493,-519.93482625,0.00024657,2]
[342053145,1731395461503,-2310.28,0.00024657,2]
[342053146,1731395461520,-200.0,0.00024657,2]
[342053147,1731395461537,-200.0,0.00024657,2]
[342053148,1731395461551,-200.0,0.00024657,2]
[342053149,1731395461566,-200.0,0.00024657,2]
[342053150,1731395461581,-200.0,0.00024657,2]
[342053151,1731395461596,-200.0,0.00024657,2]
[342053152,1731395461610,-202.0480695,0.00024657,2]
[342053153,1731395461626,-500.0,0.00024657,2]
[342053154,1731395461640,-500.0,0.00024657,2]
[342053155,1731395461655,-500.0,0.00024657,2]
[342053156,1731395461670,-226.12256618,0.00024657,2]
[342053157,1731395461684,-2204.59,0.00024657,2]
[342053158,1731395461698,-500.0,0.00024657,2]
[342053159,1731395461713,-657.25,0.00024657,2]
[342053160,1731395461725,-6271.46,0.00024657,2]
[342053161,1731395461740,-573.94,0.00024657,2]
[342053162,1731395461755,-883.62,0.00024657,2]
[342053163,1731395461771,-925.17,0.00024657,2]
[342053164,1731395461788,-500.0,0.00024657,2]
[342053165,1731395461801,-500.0,0.00024657,2]
[342053166,1731395461812,-1011.75,0.00024657,2]
[342053167,1731395461825,-19034.84,0.00024657,2]
[342053168,1731395461841,-1831.69,0.00024657,2]
[342053169,1731395461854,-500.0,0.00024657,2]
[342053170,1731395461866,-564.26,0.00024657,2]
[342053171,1731395461879,-500.0,0.00024657,2]
[342053172,1731395461890,-1321.42,0.00024657,2]
[342053173,1731395461901,-516.24,0.00024657,2]
[342053174,1731395461913,-1588.61,0.00024657,2]
[342053175,1731395461926,-500.0,0.00024657,2]
[342053176,1731395461940,-6707.74,0.00024657,2]
[342053177,1731395461952,-500.0,0.00024657,2]
[342053178,1731395461965,-4781.29,0.00024657,2]
[342053179,1731395461977,-1089.53,0.00024657,2]
[342053180,1731395461990,-737.22,0.00024657,2]
[342053181,1731395462002,-8365.05,0.00024657,2]
[342053182,1731395462015,-1231.58,0.00024657,2]
[342053183,1731395462027,-578.71,0.00024657,2]
[342053184,1731395462039,-500.0,0.00024657,2]
[342053185,1731395462053,-690.09,0.00024657,2]
[342053186,1731395462065,-3140.86,0.00024657,2]
[342053187,1731395462077,-500.0,0.00024657,2]
[342053188,1731395462089,-500.0,0.00024657,2]
[342053189,1731395462102,-1329.26,0.00024657,2]
[342053190,1731395462114,-1361.49,0.00024657,2]
[342053191,1731395462127,-500.0,0.00024657,2]
[342053192,1731395462139,-500.0,0.00024657,2]
[342053193,1731395462151,-754.43,0.00024657,2]
[342053194,1731395462163,-1514.78,0.00024657,2]
[342053195,1731395462176,-500.0,0.00024657,2]
[342053196,1731395462189,-633.9,0.00024657,2]
[342053197,1731395462201,-815.11,0.00024657,2]
[342053198,1731395462213,-611.92,0.00024657,2]
[342053199,1731395462226,-12440.19,0.00024657,2]
[342053200,1731395462238,-515.26,0.00024657,2]
[342053201,1731395462250,-782.05,0.00024657,2]
[342053202,1731395462262,-958.04,0.00024657,2]
[342053203,1731395462274,-500.0,0.00024657,2]
[342053204,1731395462287,-517.22,0.00024657,2]
[342053205,1731395462299,-500.0,0.00024657,2]
[342053206,1731395462311,-1035.61,0.00024657,2]
[342053207,1731395462322,-974.3,0.00024657,2]
[342053208,1731395462334,-3387.7,0.00024657,2]
[342053209,1731395462346,-280.70554499,0.00024657,2]
[342053210,1731395462358,-500.0,0.00024657,2]
[342053211,1731395462370,-1217.45,0.00024657,2]
[342053212,1731395462382,-150.0,0.00024658,2]
[342053213,1731395462394,-239.4087827,0.00024658,2]
[342053214,1731395462406,-151.0,0.00024658,7]
[342053215,1731395462418,-151.0,0.00024658,7]
[342053216,1731395462430,-151.0,0.00024658,7]
[342053217,1731395462442,-151.0,0.00024658,7]
[342053218,1731395462455,-151.0,0.00024658,7]
[342053219,1731395462473,-151.0,0.00024658,7]
[342053220,1731395462484,-151.0,0.00024658,7]
[342053221,1731395462497,-151.0,0.00024658,7]
[342053222,1731395462510,-151.0,0.00024658,7]
[342053223,1731395462522,-151.0,0.00024658,7]
[342053224,1731395462535,-238.603715,0.00024658,7]
[342053225,1731395462547,-200.0,0.00024658,2]
[342053226,1731395462559,-208.25061215,0.00024658,2]
[342053227,1731395462572,-150.0,0.00024661,2]
[342053228,1731395462584,-530.0,0.00024661,2]
[342053229,1731395462596,-2390.0,0.00024661,2]
[342053230,1731395462607,-1123.0,0.00024661,2]
[342053231,1731395462621,-587.0,0.00024672,2]
[342053232,1731395462633,-9161.96,0.000247,14]
[342053233,1731395462645,-3767.3,0.000247,14]
[342053234,1731395462658,-1978.88,0.000247,14]
[342053235,1731395462670,-600.0,0.0002475,2]
[342053236,1731395462683,-2000.0,0.0002482,2]
[342053237,1731395462697,-1007.18487448,0.00024889,2]
[342053238,1731395462708,-544.45,0.00024931,2]
[342053239,1731395462720,-515.04,0.00024931,2]
[342053240,1731395462733,-554.84,0.00024931,2]
[342053241,1731395462744,-607.32993467,0.00024931,2]
[342053242,1731395462757,-500.0,0.00024931,2]
[342053243,1731395462767,-500.0,0.00024931,2]
[342053244,1731395462776,-500.0,0.00024931,2]
[342053245,1731395462943,-500.0,0.00024931,14]
[342053246,1731395462953,-500.0,0.00024931,2]
[342053247,1731395462963,-500.0,0.00024931,14]
[342053248,1731395462973,-500.0,0.00024931,14]
[342053249,1731395462983,-500.0,0.00024931,14]
[342053250,1731395462993,-500.0,0.00024931,14]
[342053251,1731395463003,-500.0,0.00024931,14]
[342053252,1731395463012,-1157.98,0.00024931,2]
[342053253,1731395463022,-500.0,0.00024931,14]
[342053254,1731395463031,-500.0,0.00024931,14]
[342053255,1731395463040,-500.0,0.00024931,14]
[342053256,1731395463050,-500.0,0.00024931,14]
[342053257,1731395463060,-505.09735501,0.00024931,14]
[342053258,1731395463069,-861.1,0.00024931,2]
[342053259,1731395463079,-528.28,0.00024931,2]
[342053260,1731395463089,-500.0,0.00024931,2]
[342053261,1731395463099,-500.0,0.00024931,2]
[342053262,1731395463109,-500.0,0.00024931,2]
[342053263,1731395463119,-500.0,0.00024931,2]
[342053264,1731395463129,-500.0,0.00024931,2]
[342053265,1731395463139,-500.0,0.00024931,2]
[342053266,1731395463149,-500.0,0.00024931,2]
[342053267,1731395463159,-529.4,0.00024931,2]
[342053268,1731395463169,-687.54,0.00024931,2]
[342053269,1731395463179,-576.02377808,0.00024931,2]
[342053270,1731395463191,-687.26,0.00024931,2]
[342053271,1731395463202,-2310.28,0.00024931,2]
[342053272,1731395463211,-500.0,0.00024931,2]
[342053273,1731395463221,-500.0,0.00024931,2]
[342053274,1731395463232,-500.0,0.00024931,2]
[342053275,1731395463242,-2204.59,0.00024931,2]
[342053276,1731395463251,-500.0,0.00024931,2]
[342053277,1731395463262,-657.25,0.00024931,2]
[342053278,1731395463274,-6271.46,0.00024931,2]
[342053279,1731395463284,-573.94,0.00024931,2]
[342053280,1731395463295,-883.62,0.00024931,2]
[342053281,1731395463305,-925.17,0.00024931,2]
[342053282,1731395463314,-500.0,0.00024931,2]
[342053283,1731395463325,-500.0,0.00024931,2]
[342053284,1731395463335,-1011.75,0.00024931,2]
[342053285,1731395463345,-19034.84,0.00024931,2]
[342053286,1731395463355,-1831.69,0.00024931,2]
[342053287,1731395463365,-500.0,0.00024931,2]
[342053288,1731395463374,-564.26,0.00024931,2]
[342053289,1731395463384,-500.0,0.00024931,2]
[342053290,1731395463393,-1321.42,0.00024931,2]
[342053291,1731395463403,-516.24,0.00024931,2]
[342053292,1731395463413,-1588.61,0.00024931,2]
[342053293,1731395463423,-611.82221398,0.00024931,2]
[342053294,1731395463432,-500.0,0.00024931,2]
[342053295,1731395463444,-6707.74,0.00024931,2]
[342053296,1731395463457,-4781.29,0.00024931,2]
[342053297,1731395463471,-1089.53,0.00024931,2]
[342053298,1731395463481,-737.22,0.00024931,2]
[342053299,1731395463491,-8365.05,0.00024931,2]
[342053300,1731395463500,-1231.58,0.00024931,2]
[342053301,1731395463513,-578.71,0.00024931,2]
[342053302,1731395463525,-500.0,0.00024931,2]
[342053303,1731395463537,-690.09,0.00024931,2]
[342053304,1731395463554,-3140.86,0.00024931,2]
[342053305,1731395463564,-500.0,0.00024931,2]
[342053306,1731395463574,-500.0,0.00024931,2]
[342053307,1731395463584,-1329.26,0.00024931,2]
[342053308,1731395463594,-1361.49,0.00024931,2]
[342053309,1731395463604,-500.0,0.00024931,2]
[342053310,1731395463614,-500.0,0.00024931,2]
[342053311,1731395463624,-754.43,0.00024931,2]
[342053312,1731395463633,-1514.78,0.00024931,2]
[342053313,1731395463642,-500.0,0.00024931,2]
[342053314,1731395463652,-633.9,0.00024931,2]
[342053315,1731395463662,-815.11,0.00024931,2]
[342053316,1731395463671,-611.92,0.00024931,2]
[342053317,1731395463682,-12440.19,0.00024931,2]
[342053318,1731395463693,-515.26,0.00024931,2]
[342053319,1731395463702,-782.05,0.00024931,2]
[342053320,1731395463712,-958.04,0.00024931,2]
[342053321,1731395463722,-500.0,0.00024931,2]
[342053322,1731395463732,-517.22,0.00024931,2]
[342053323,1731395463742,-500.0,0.00024931,2]